bitfinex/quotes_BTCUSD_20241223
["timestamp","ask_amount","ask_price","bid_price","bid_amount"]
[1734989181058,0.212188,94256.0,94255.0,0.004]
[1734989181258,0.212188,94256.0,94242.0,0.212219]
[1734989181482,0.00015803,94257.0,94255.0,0.001]
[1734989181901,0.00015803,94257.0,94246.0,0.212209]
[1734989182130,0.00015803,94257.0,94236.0,0.212233]
[1734989182327,0.00015803,94257.0,94256.0,0.212188]
[1734989183377,0.00015803,94257.0,94256.0,0.23147345]
[1734989183775,0.00015803,94257.0,94256.0,0.23747345]
[1734989184046,0.00015803,94257.0,94256.0,0.23147345]
[1734989184430,0.00015803,94257.0,94256.0,0.23647345]
[1734989184879,0.00015803,94257.0,94256.0,0.19947344]
[1734989185691,0.00015803,94257.0,94256.0,0.36795228]
[1734989185924,0.00015803,94257.0,94256.0,0.52205228]
[1734989186123,0.00015803,94257.0,94256.0,0.62205228]
[1734989186367,0.0001712,94276.0,94271.0,0.212154]
[1734989186495,0.00069767,94272.0,94271.0,0.31614032]
[1734989186904,1e-08,94276.0,94271.0,0.54757977]
[1734989187108,1e-08,94276.0,94273.0,0.212149]
[1734989187521,1e-08,94276.0,94273.0,0.424298]
[1734989187918,1e-08,94276.0,94273.0,0.212149]
[1734989188170,1e-08,94276.0,94274.0,0.01928545]
[1734989188344,1e-08,94276.0,94275.0,0.212145]
[1734989188566,1e-08,94276.0,94274.0,0.01928545]
[1734989188846,1e-08,94276.0,94275.0,0.01928545]
[1734989189233,0.23335621,94276.0,94275.0,0.01928545]
[1734989189466,0.23335621,94276.0,94275.0,0.02028545]
[1734989189912,1e-08,94276.0,94262.0,0.212173]
[1734989190126,1e-08,94276.0,94266.0,0.212163]
[1734989190334,1e-08,94276.0,94271.0,0.20115299]
[1734989190543,1e-08,94276.0,94272.0,0.212151]
[1734989190962,1e-08,94276.0,94275.0,0.008]
[1734989191151,1e-08,94276.0,94272.0,0.212151]
[1734989191665,1e-08,94276.0,94274.0,0.212147]
[1734989191877,1e-08,94276.0,94275.0,0.00106056]
[1734989192092,1e-08,94276.0,94274.0,0.212147]
[1734989192957,1e-08,94276.0,94275.0,0.01926044]
[1734989193162,1e-08,94276.0,94275.0,0.02726044]
[1734989193475,1e-08,94276.0,94274.0,0.213147]
[1734989193698,1e-08,94276.0,94274.0,0.217147]
[1734989194106,1e-08,94276.0,94274.0,0.213147]
[1734989194313,0.00100001,94276.0,94275.0,0.007]
[1734989194509,0.00100001,94276.0,94274.0,0.213147]
[1734989194796,0.00100001,94276.0,94274.0,0.18714699]
[1734989195027,0.00100001,94276.0,94274.0,0.19214699]
[1734989195142,0.00100001,94276.0,94275.0,0.003]
[1734989195596,0.00100001,94276.0,94274.0,0.005]
[1734989195772,0.00100001,94276.0,94274.0,0.008]
[1734989196208,0.00100001,94276.0,94275.0,0.00106073]
[1734989196449,1e-08,94276.0,94275.0,0.212145]
[1734989196631,1e-08,94276.0,94275.0,0.220145]
[1734989197010,1e-08,94276.0,94275.0,0.212145]
[1734989197831,0.00100001,94276.0,94275.0,0.212145]
[1734989198032,1e-08,94276.0,94275.0,0.212145]
[1734989198902,1e-08,94276.0,94275.0,0.214145]
[1734989199460,1e-08,94276.0,94275.0,0.220145]
[1734989199609,1e-08,94276.0,94275.0,0.215145]
[1734989199835,1e-08,94276.0,94275.0,0.207145]
[1734989200131,1e-08,94276.0,94275.0,0.211145]
[1734989200545,1e-08,94276.0,94275.0,0.219145]
[1734989200890,1e-08,94276.0,94275.0,0.207145]
[1734989201150,1e-08,94276.0,94275.0,0.211145]
[1734989201322,1e-08,94276.0,94275.0,0.214145]
[1734989201967,1e-08,94276.0,94275.0,0.211145]
[1734989202181,1e-08,94276.0,94275.0,0.212145]
[1734989202590,1e-08,94276.0,94275.0,0.205145]
[1734989202792,1e-08,94276.0,94275.0,0.004]
[1734989202998,0.02121301,94276.0,94275.0,0.02336392]
[1734989203414,1e-08,94276.0,94275.0,0.03036392]
[1734989203622,1e-08,94276.0,94275.0,0.02336392]
[1734989204269,1e-08,94276.0,94275.0,0.02136392]
[1734989204688,1e-08,94276.0,94275.0,0.002]
[1734989204906,0.212145,94275.0,94258.0,0.212181]
[1734989206124,0.214145,94275.0,94258.0,0.212181]
[1734989206296,0.004,94275.0,94247.0,0.212208]
[1734989206499,0.004,94275.0,94259.0,0.212181]
[1734989206702,0.007,94275.0,94259.0,0.212181]
[1734989206884,0.007,94275.0,94259.0,0.424362]
[1734989207082,0.005,94275.0,94259.0,0.424362]
[1734989207282,0.005,94275.0,94260.0,0.10504708]
[1734989207515,0.003,94275.0,94261.0,0.00106062]
[1734989207723,0.003,94275.0,94272.0,0.212151]
[1734989207905,0.005,94275.0,94272.0,0.212151]
[1734989208493,0.008,94275.0,94272.0,0.424302]
[1734989208940,0.005,94275.0,94272.0,0.424302]
[1734989209143,0.001,94275.0,94272.0,0.424302]
[1734989209817,0.001,94275.0,94272.0,0.39530199]
[1734989210083,0.001,94275.0,94272.0,0.39930199]
[1734989210518,1e-08,94276.0,94272.0,0.39930199]
[1734989210728,1e-08,94276.0,94272.0,0.39530199]
[1734989210940,1e-08,94276.0,94272.0,0.39630199]
[1734989211149,1e-08,94276.0,94272.0,0.39730199]
[1734989211583,1e-08,94276.0,94272.0,0.39630199]
[1734989211785,0.00100001,94276.0,94272.0,0.39630199]
[1734989212200,0.00100001,94276.0,94272.0,0.39530199]
[1734989212416,1e-08,94276.0,94272.0,0.39530199]
[1734989212632,1e-08,94276.0,94274.0,0.212147]
[1734989214184,1e-08,94276.0,94274.0,0.213147]
[1734989214593,0.00100001,94276.0,94274.0,0.213147]
[1734989214797,0.00100001,94276.0,94274.0,0.16114699]
[1734989215042,1e-08,94276.0,94274.0,0.16114699]
[1734989215246,1e-08,94276.0,94274.0,0.16214699]
[1734989215447,1e-08,94276.0,94274.0,0.16114699]
[1734989215804,1e-08,94276.0,94274.0,0.16514699]
[1734989218444,1e-08,94276.0,94275.0,0.10398632]
[1734989219402,1e-08,94276.0,94275.0,0.12472854]
[1734989219605,1e-08,94276.0,94275.0,0.12578905]
[1734989219766,1e-08,94276.0,94275.0,0.11778905]
[1734989220379,1e-08,94276.0,94275.0,0.09598632]
[1734989220586,1e-08,94276.0,94275.0,0.11744604]
[1734989221019,1e-08,94276.0,94275.0,0.11644604]
[1734989221221,1e-08,94276.0,94275.0,0.09704683]
[1734989221466,1e-08,94276.0,94275.0,0.09904683]
[1734989221668,1e-08,94276.0,94275.0,0.09798632]
[1734989221915,1e-08,94276.0,94275.0,0.09304683]
[1734989222123,1e-08,94276.0,94275.0,0.007]
[1734989222557,1e-08,94276.0,94274.0,0.16014699]
[1734989222760,1e-08,94276.0,94275.0,0.008]
[1734989222992,1e-08,94276.0,94273.0,0.424298]
[1734989223181,1e-08,94276.0,94275.0,0.0432316]
[1734989223395,0.0001712,94286.0,94275.0,0.0532316]
[1734989223600,0.00032911,94286.0,94276.0,0.212143]
[1734989224170,0.00032911,94286.0,94277.0,0.42428]
[1734989224381,0.00032911,94286.0,94277.0,0.21214]
[1734989224907,0.212122,94285.0,94275.0,0.004]
[1734989225114,0.00132911,94286.0,94269.0,0.212158]
[1734989225643,0.00132911,94286.0,94274.0,0.212145]
[1734989225848,0.25600482,94286.0,94274.0,0.212145]
[1734989226064,0.212122,94285.0,94275.0,0.002]
[1734989226377,0.00032911,94286.0,94275.0,0.002]
[1734989226776,0.00132911,94286.0,94275.0,0.002]
[1734989226989,0.00132911,94286.0,94271.0,0.212152]
[1734989227201,0.00032911,94286.0,94279.0,0.212135]
[1734989227403,0.002,94285.0,94279.0,0.212135]
[1734989227813,0.00032911,94286.0,94277.0,0.21214]
[1734989228245,0.001,94285.0,94273.0,0.212149]
[1734989228660,0.00132911,94286.0,94273.0,0.212149]
[1734989228867,0.00132911,94286.0,94279.0,0.002]
[1734989229297,0.00032911,94286.0,94273.0,0.212149]
[1734989229501,0.00032911,94286.0,94273.0,0.214149]
[1734989229713,0.00032911,94286.0,94276.0,0.21214]
[1734989229922,0.00032911,94286.0,94276.0,0.17913999]
[1734989230134,0.00032911,94286.0,94279.0,0.001]
[1734989231238,0.00132911,94286.0,94279.0,0.001]
[1734989231480,0.00132911,94286.0,94276.0,0.17913999]
[1734989232516,0.21345011,94286.0,94273.0,0.212149]
[1734989232732,0.00132911,94286.0,94277.0,0.21214]
[1734989232967,0.00032911,94286.0,94277.0,0.21214]
[1734989233325,0.00132911,94286.0,94277.0,0.21214]
[1734989233726,0.00032911,94286.0,94277.0,0.21214]
[1734989233929,0.00032911,94286.0,94276.0,0.001]
[1734989234141,0.02124411,94285.0,94276.0,0.213141]
[1734989234536,0.00132911,94286.0,94280.0,0.212134]
[1734989234739,0.00032911,94286.0,94280.0,0.18613399]
[1734989235188,0.00032911,94286.0,94277.0,0.21314]
[1734989235519,0.00032911,94286.0,94277.0,0.001]
[1734989235928,0.212122,94285.0,94270.0,0.212156]
[1734989236136,0.212122,94285.0,94280.0,0.001]
[1734989236338,0.212122,94285.0,94271.0,0.212154]
[1734989236650,0.212122,94285.0,94270.0,0.212156]
[1734989236861,0.212122,94285.0,94273.0,0.212147]
[1734989237490,0.424245,94285.0,94270.0,0.212156]
[1734989237699,0.213122,94285.0,94277.0,0.001]
[1734989238113,0.001,94285.0,94278.0,0.212138]
[1734989238544,0.002,94285.0,94278.0,0.212138]
[1734989238776,0.16443911,94291.0,94278.0,0.212138]
[1734989239206,0.002,94285.0,94270.0,0.424311]
[1734989239408,0.003,94285.0,94275.0,0.00015791]
[1734989239760,0.212125,94284.0,94270.0,0.21131291]
[1734989240051,0.002,94285.0,94275.0,0.212145]
[1734989240620,0.002,94285.0,94278.0,0.002]
[1734989241055,0.0001708,94285.0,94271.0,0.212154]
[1734989241212,0.0001708,94285.0,94275.0,0.001]
[1734989241779,0.212125,94284.0,94278.0,0.001]
[1734989241914,0.0001708,94285.0,94278.0,0.001]
[1734989242116,0.0001708,94285.0,94277.0,0.212139]
[1734989242574,0.0001708,94285.0,94278.0,0.212138]
[1734989242785,0.0001708,94285.0,94277.0,0.212139]
[1734989243316,0.212119,94287.0,94275.0,0.001]
[1734989243662,0.00015785,94291.0,94277.0,0.21214]
[1734989243861,0.00015785,94291.0,94275.0,0.001]
[1734989244080,0.00015785,94291.0,94270.0,0.00106066]
[1734989244301,0.00015785,94291.0,94271.0,0.10398632]
[1734989244612,0.00015785,94291.0,94287.0,0.212118]
[1734989244807,0.00015785,94291.0,94287.0,0.206118]
[1734989245023,0.00015785,94291.0,94284.0,0.212124]
[1734989245612,0.00015785,94291.0,94271.0,0.10398632]
[1734989245613,0.00115785,94291.0,94272.0,0.212152]
[1734989245820,0.00015785,94291.0,94273.0,0.10398632]
[1734989246030,0.00015785,94291.0,94273.0,0.13120902]
[1734989246237,0.212111,94290.0,94273.0,0.0272227]
[1734989246408,0.212124,94285.0,94273.0,0.01944476]
[1734989246624,0.212124,94285.0,94274.0,0.01944476]
[1734989247441,0.002,94285.0,94276.0,0.212142]
[1734989247868,0.212114,94289.0,94276.0,0.212142]
[1734989248073,0.212114,94289.0,94270.0,0.212156]
[1734989248255,0.424228,94289.0,94274.0,0.212146]
[1734989248453,0.212123,94285.0,94274.0,0.002]
[1734989248659,0.212123,94285.0,94271.0,0.04244104]
[1734989248916,0.212123,94285.0,94272.0,0.212152]
[1734989249782,0.212116,94288.0,94276.0,0.20314198]
[1734989249981,0.00015785,94291.0,94273.0,0.00106066]
[1734989250188,0.00015785,94291.0,94280.0,0.212133]
[1734989250772,0.003,94285.0,94280.0,0.212133]
[1734989251966,0.003,94285.0,94281.0,0.212131]
[1734989252171,0.00015785,94291.0,94281.0,0.212131]
[1734989252549,0.00115785,94291.0,94281.0,0.212131]
[1734989252964,0.0001708,94285.0,94281.0,0.212131]
[1734989253167,0.0001708,94285.0,94281.0,0.001]
[1734989253607,0.0001708,94285.0,94281.0,0.213131]
[1734989253820,0.0001708,94285.0,94282.0,0.0010606]
[1734989254025,0.0001708,94285.0,94283.0,0.212127]
[1734989254886,0.0001708,94285.0,94283.0,0.204127]
[1734989255171,0.00115785,94291.0,94290.0,0.212111]
[1734989255398,0.00015785,94291.0,94290.0,0.212111]
[1734989256371,0.00015785,94291.0,94290.0,0.34009732]
[1734989256579,0.0001712,94298.0,94297.0,0.314495]
[1734989256795,0.00025489,94298.0,94297.0,0.46818132]
[1734989257161,0.09554846,94314.0,94310.0,0.1]
[1734989257360,0.03339704,94314.0,94313.0,0.235059]
[1734989257562,0.03339704,94314.0,94313.0,0.212059]
[1734989257761,0.03339704,94314.0,94311.0,0.212063]
[1734989258282,0.03432853,94314.0,94311.0,0.212063]
[1734989258487,0.0010837,94314.0,94311.0,0.212063]
[1734989258912,0.0010837,94314.0,94311.0,0.4695393]
[1734989259117,8.37e-05,94314.0,94311.0,0.4695393]
[1734989259315,8.37e-05,94314.0,94313.0,0.212059]
[1734989259678,8.37e-05,94314.0,94313.0,0.19405899]
[1734989260080,8.37e-05,94314.0,94313.0,0.212059]
[1734989260823,8.37e-05,94314.0,94313.0,0.31604532]
[1734989261034,8.37e-05,94314.0,94313.0,0.32104532]
[1734989261252,8.37e-05,94314.0,94313.0,0.41366375]
[1734989261405,8.37e-05,94314.0,94313.0,0.41866375]
[1734989262032,8.37e-05,94314.0,94313.0,0.42366375]
[1734989262239,8.37e-05,94314.0,94313.0,0.41866375]
[1734989262496,8.37e-05,94314.0,94313.0,0.41966375]
[1734989262911,8.37e-05,94314.0,94313.0,0.34404532]
[1734989263111,8.37e-05,94314.0,94313.0,0.34604532]
[1734989263543,8.37e-05,94314.0,94313.0,0.35204532]
[1734989263935,8.37e-05,94314.0,94313.0,0.34104532]
[1734989264276,8.37e-05,94314.0,94313.0,0.35004532]
[1734989264612,8.37e-05,94314.0,94313.0,0.35604532]
[1734989264817,8.37e-05,94314.0,94313.0,0.40994224]
[1734989265017,8.37e-05,94314.0,94313.0,0.34204532]
[1734989265295,8.37e-05,94314.0,94313.0,0.224059]
[1734989265507,0.0002545,94314.0,94313.0,0.02993144]
[1734989265712,0.0002545,94314.0,94313.0,0.03393144]
[1734989266061,0.0002545,94314.0,94313.0,0.02993144]
[1734989266464,0.0002545,94314.0,94313.0,0.03393144]
[1734989266667,0.0002545,94314.0,94313.0,0.02493144]
[1734989266999,0.0002545,94314.0,94313.0,0.03293144]
[1734989267201,0.0002545,94314.0,94313.0,0.02493144]
[1734989267401,0.00820995,94314.0,94313.0,0.02493144]
[1734989267608,0.0002545,94314.0,94313.0,0.02893144]
[1734989268189,0.0002545,94314.0,94313.0,0.02493144]
[1734989268372,0.0002545,94314.0,94313.0,0.02093144]
[1734989268589,0.0002545,94314.0,94313.0,0.02193144]
[1734989268795,0.0002545,94314.0,94313.0,0.12697796]
[1734989268999,0.0002545,94314.0,94313.0,0.12597785]
[1734989269424,0.0002545,94314.0,94313.0,0.14897785]
[1734989269638,0.0002545,94314.0,94313.0,0.19877785]
[1734989269836,0.0002545,94314.0,94313.0,0.19377785]
[1734989270041,0.0002545,94314.0,94313.0,0.26541893]
[1734989270247,0.0002545,94314.0,94313.0,0.26735884]
[1734989270658,0.0002545,94314.0,94313.0,0.26435884]
[1734989270870,0.0002545,94314.0,94313.0,0.27335884]
[1734989271314,0.0002545,94314.0,94313.0,0.20171776]
[1734989271517,0.0002545,94314.0,94313.0,0.20277771]
[1734989271727,0.0002545,94314.0,94313.0,0.14322573]
[1734989272150,0.0002545,94314.0,94313.0,0.15222573]
[1734989272366,0.0002545,94314.0,94313.0,0.13397786]
[1734989272586,0.0002545,94314.0,94313.0,0.12997786]
[1734989272918,0.0002545,94314.0,94313.0,0.13822286]
[1734989273302,0.0002545,94314.0,94313.0,0.12922286]
[1734989273570,0.0002545,94314.0,94313.0,0.13822286]
[1734989273946,0.0002545,94314.0,94313.0,0.14822286]
[1734989274320,0.0002545,94314.0,94313.0,0.15722286]
[1734989274534,0.0002545,94314.0,94313.0,0.15122286]
[1734989275006,0.0002545,94314.0,94313.0,0.16022286]
[1734989275204,0.0002545,94314.0,94313.0,0.22575462]
[1734989275354,0.0002545,94314.0,94313.0,0.22869452]
[1734989275557,0.0002545,94314.0,94313.0,0.16016276]
[1734989275762,0.0002545,94314.0,94313.0,0.24402273]
[1734989275954,0.0002545,94314.0,94313.0,0.34296276]
[1734989276238,0.0002545,94314.0,94313.0,0.59296276]
[1734989276447,0.0002545,94314.0,94313.0,0.57996276]
[1734989276673,0.0002545,94314.0,94313.0,0.59928551]
[1734989276884,0.0002545,94314.0,94313.0,0.70327183]
[1734989277087,0.0002545,94314.0,94313.0,0.59928551]
[1734989277287,0.0002545,94314.0,94313.0,0.60828551]
[1734989277488,0.0001712,94323.0,94322.0,0.235039]
[1734989277672,0.0001712,94323.0,94322.0,0.33902532]
[1734989278103,0.0001712,94323.0,94322.0,0.35834807]
[1734989278714,0.0827,94347.0,94330.0,0.424041]
[1734989278912,0.0827,94347.0,94330.0,0.52802732]
[1734989279677,0.0827,94347.0,94330.0,0.60433355]
[1734989279854,0.0827,94347.0,94330.0,0.5150273]
[1734989280400,0.0827,94347.0,94330.0,0.5180273]
[1734989282033,0.0827,94347.0,94331.0,0.01934841]
[1734989282239,0.0827,94347.0,94332.0,0.212017]
[1734989282846,0.212013,94334.0,94333.0,0.01934841]
[1734989283207,0.45881774,94334.0,94333.0,0.01934841]
[1734989283600,0.15,94333.0,94332.0,0.003]
[1734989283819,0.15,94333.0,94316.0,0.02108466]
[1734989283820,0.212049,94318.0,94316.0,0.02108466]
[1734989284875,0.424098,94318.0,94313.0,0.0044158]
[1734989285077,0.0764,94317.0,94313.0,0.0044158]
[1734989285281,0.424106,94316.0,94313.0,0.0044158]
[1734989285691,0.212057,94314.0,94313.0,0.0044158]
[1734989285904,0.36154332,94314.0,94313.0,0.0001708]
[1734989287092,0.36254332,94314.0,94313.0,0.0001708]
[1734989287719,0.36354332,94314.0,94313.0,0.0001708]
[1734989287919,0.36654332,94314.0,94313.0,0.0001708]
[1734989288439,0.36354332,94314.0,94313.0,0.0001708]
[1734989288644,0.36754332,94314.0,94313.0,0.0001708]
[1734989288808,0.36654332,94314.0,94313.0,0.0001708]
[1734989289019,0.36554332,94314.0,94313.0,0.0001708]
[1734989289225,0.36654332,94314.0,94313.0,0.0001708]
[1734989289756,0.212068,94309.0,94308.0,0.0326388]
[1734989290190,0.10598632,94314.0,94308.0,0.0326388]
[1734989290191,0.003,94314.0,94308.0,0.0326388]
[1734989290319,0.004,94314.0,94308.0,0.0326388]
[1734989290545,0.001,94314.0,94308.0,0.0326388]
[1734989290740,0.213059,94314.0,94308.0,0.0326388]
[1734989290944,0.213059,94314.0,94313.0,0.0001708]
[1734989291144,0.2131444,94314.0,94313.0,0.0001708]
[1734989291569,0.0010854,94314.0,94313.0,0.0001708]
[1734989291771,0.0040854,94314.0,94313.0,0.0001708]
[1734989292836,0.0030854,94314.0,94313.0,0.0001708]
[1734989292968,0.0010854,94314.0,94313.0,0.0001708]
[1734989293169,0.0797,94336.0,94322.0,0.212039]
[1734989293373,0.0797,94336.0,94319.0,0.15]
[1734989293603,0.0797,94336.0,94313.0,0.10415712]
[1734989293604,0.212003,94339.0,94325.0,0.15]
[1734989294011,0.075271,94342.0,94325.0,0.15]
[1734989294524,0.212001,94340.0,94325.0,0.15]
[1734989294691,0.212001,94340.0,94325.0,0.13899999]
[1734989294884,0.212001,94340.0,94321.0,0.212041]
[1734989295213,0.02121722,94334.0,94321.0,0.212041]
[1734989295650,0.212001,94340.0,94321.0,0.212041]
[1734989296210,0.212009,94336.0,94321.0,0.212041]
[1734989296404,0.001,94334.0,94314.0,0.212057]
[1734989296603,0.001,94334.0,94316.0,0.212053]
[1734989296831,0.001,94334.0,94313.0,0.0001708]
[1734989297042,0.212014,94333.0,94320.0,0.15]
[1734989297560,0.0001712,94335.0,94320.0,0.15]
[1734989297764,0.001,94334.0,94323.0,0.212036]
[1734989298170,0.0001712,94335.0,94323.0,0.212036]
[1734989298629,0.02121702,94334.0,94323.0,0.212036]
[1734989298824,0.0001712,94335.0,94323.0,0.424073]
[1734989299011,0.0001712,94335.0,94329.0,0.212023]
[1734989299220,0.0001712,94335.0,94332.0,0.02151632]
[1734989299543,0.001,94333.0,94332.0,0.02151632]
[1734989299862,0.001,94333.0,94332.0,0.01751632]
[1734989300062,0.0001712,94335.0,94332.0,0.01751632]
[1734989300697,0.0001712,94335.0,94332.0,0.004]
[1734989301105,0.0001712,94335.0,94333.0,0.212014]
[1734989301302,0.0001712,94335.0,94332.0,0.005]
[1734989302517,0.0001712,94335.0,94332.0,0.001]
[1734989302890,0.31599832,94334.0,94332.0,0.004]
[1734989303145,0.31599832,94334.0,94332.0,0.003]
[1734989303768,0.212035,94324.0,94323.0,0.000171]
[1734989303971,0.31602132,94324.0,94323.0,0.000171]
[1734989304584,0.212035,94324.0,94323.0,0.000171]
[1734989304696,0.21205,94318.0,94308.0,0.0319806]
[1734989304903,0.212037,94323.0,94308.0,0.0319806]
[1734989305127,0.21205,94317.0,94308.0,0.0319806]
[1734989306586,0.082,94333.0,94308.0,0.0319806]
[1734989306762,0.001,94318.0,94309.0,0.424136]
[1734989306966,0.001,94318.0,94309.0,0.212068]
[1734989307184,0.212036,94324.0,94309.0,0.212068]
[1734989307756,0.212046,94319.0,94308.0,0.0319806]
[1734989307975,0.001,94317.0,94308.0,0.0319806]
[1734989308171,0.212053,94316.0,94308.0,0.0319806]
[1734989308643,0.001,94317.0,94308.0,0.0329806]
[1734989308849,0.001,94317.0,94308.0,0.0319806]
[1734989309280,0.212046,94319.0,94308.0,0.0329806]
[1734989309488,0.212046,94319.0,94308.0,0.0319806]
[1734989309702,0.2544545,94319.0,94308.0,0.0319806]
[1734989309880,0.212039,94323.0,94308.0,0.2450486]
[1734989310127,0.212039,94323.0,94308.0,0.4561196]
[1734989310335,0.212039,94323.0,94308.0,0.4571196]
[1734989310764,0.002,94324.0,94315.0,0.212054]
[1734989310987,0.212043,94321.0,94309.0,0.212068]
[1734989311196,0.212043,94321.0,94308.0,0.0329806]
[1734989311399,0.212044,94320.0,94308.0,0.0329806]
[1734989311604,0.212046,94319.0,94308.0,0.0319806]
[1734989312024,0.21205,94317.0,94308.0,0.0319806]
[1734989312573,0.21206,94313.0,94308.0,0.0319806]
[1734989312797,0.21205,94317.0,94308.0,0.0319806]
[1734989313335,0.212043,94321.0,94308.0,0.2440506]
[1734989313616,0.212043,94321.0,94308.0,0.2450506]
[1734989313829,0.001,94319.0,94308.0,0.2450506]
[1734989314236,0.212023,94330.0,94309.0,0.00106024]
[1734989314456,0.212017,94332.0,94314.0,0.212056]
[1734989314789,0.001,94321.0,94310.0,0.212066]
[1734989314984,0.21204,94322.0,94310.0,0.212066]
[1734989315215,0.212032,94326.0,94310.0,0.424132]
[1734989316247,0.424064,94326.0,94310.0,0.212066]
[1734989317147,0.20885862,94322.0,94310.0,0.212066]
[1734989317348,0.212032,94326.0,94314.0,0.212057]
[1734989317548,0.10398632,94331.0,94314.0,0.212057]
[1734989317692,0.002,94326.0,94315.0,0.212055]
[1734989317913,0.002,94326.0,94316.0,0.01643146]
[1734989318265,0.212035,94324.0,94311.0,0.424128]
[1734989318438,0.212035,94324.0,94315.0,0.212054]
[1734989318784,0.002,94326.0,94322.0,0.212037]
[1734989319004,0.002,94326.0,94308.0,0.0321516]
[1734989319212,0.003,94326.0,94309.0,0.00106018]
[1734989319650,0.003,94326.0,94325.0,0.212032]
[1734989319989,0.001,94326.0,94325.0,0.212032]
[1734989320188,0.001,94326.0,94310.0,0.39115232]
[1734989320404,0.001,94326.0,94310.0,0.17908632]
[1734989320624,0.4453667,94325.0,94311.0,0.212063]
[1734989320831,0.4453667,94325.0,94308.0,0.0321516]
[1734989320832,0.0774,94324.0,94308.0,0.0321516]
[1734989321088,0.212068,94309.0,94308.0,0.0321516]
[1734989321264,0.31605432,94309.0,94308.0,0.0321516]
[1734989321508,0.39345432,94309.0,94308.0,0.0321516]
[1734989322156,0.39345432,94309.0,94308.0,0.02797302]
[1734989322988,0.39345432,94309.0,94308.0,0.02997302]
[1734989323169,0.39345432,94309.0,94308.0,0.02797302]
[1734989323379,0.39345432,94309.0,94308.0,0.02897302]
[1734989323727,0.39345432,94309.0,94308.0,0.02797302]
[1734989324171,0.39545432,94309.0,94308.0,0.02797302]
[1734989324370,0.39645432,94309.0,94308.0,0.02797302]
[1734989324572,0.39545432,94309.0,94308.0,0.02797302]
[1734989324772,0.212087,94301.0,94291.0,0.13222301]
[1734989324981,0.212087,94301.0,94291.0,0.13230671]
[1734989325380,0.4665916,94301.0,94291.0,0.13230671]
[1734989325582,0.4665916,94301.0,94292.0,0.042468]
[1734989325583,0.2545036,94301.0,94292.0,0.042468]
[1734989325782,0.212087,94301.0,94292.0,0.042468]
[1734989325983,0.212097,94297.0,94292.0,0.042468]
[1734989326185,0.424194,94297.0,94292.0,0.042468]
[1734989327224,0.424194,94297.0,94292.0,0.043468]
[1734989327456,0.0801,94294.0,94292.0,0.043468]
[1734989327627,0.46609032,94293.0,94292.0,0.001]
[1734989328835,0.46609032,94293.0,94292.0,0.004]
[1734989329036,0.46609032,94293.0,94291.0,0.0002547]
[1734989329241,0.15,94292.0,94291.0,0.0002547]
[1734989329412,0.25398632,94292.0,94291.0,0.0002547]
[1734989329813,0.212141,94277.0,94262.0,0.212174]
[1734989330056,0.212141,94277.0,94269.0,8.369e-05]
[1734989330057,0.212156,94270.0,94269.0,8.369e-05]
[1734989330233,0.362156,94270.0,94269.0,8.369e-05]
[1734989330438,0.52076655,94270.0,94269.0,8.369e-05]
[1734989331487,0.46614232,94270.0,94269.0,8.369e-05]
[1734989331689,0.46614232,94270.0,94269.0,0.00308369]
[1734989332159,0.46614232,94270.0,94269.0,8.369e-05]
[1734989332309,0.47014232,94270.0,94269.0,8.369e-05]
[1734989332660,0.47314232,94270.0,94269.0,8.369e-05]
[1734989333180,0.47014232,94270.0,94269.0,8.369e-05]
[1734989333380,0.47314232,94270.0,94269.0,8.369e-05]
[1734989333780,0.46914232,94270.0,94269.0,8.369e-05]
[1734989334011,0.47314232,94270.0,94269.0,8.369e-05]
[1734989334229,0.47014232,94270.0,94269.0,8.369e-05]
[1734989334403,0.46614232,94270.0,94269.0,8.369e-05]
[1734989334686,0.47014232,94270.0,94269.0,8.369e-05]
[1734989334841,0.47014232,94270.0,94256.0,0.042488]
[1734989334842,0.212185,94257.0,94256.0,0.03357167]
[1734989335046,0.212185,94257.0,94256.0,0.00052667]
[1734989335445,0.35860792,94257.0,94256.0,0.00052667]
[1734989335655,0.58630792,94257.0,94256.0,0.00052667]
[1734989336309,0.58730792,94257.0,94256.0,0.00052667]
[1734989336833,0.58630792,94257.0,94256.0,0.00052667]
[1734989337183,0.58730792,94257.0,94256.0,0.00152667]
[1734989337292,0.58730792,94257.0,94256.0,0.00052667]
[1734989337497,0.58730792,94257.0,94256.0,0.00152667]
[1734989337726,0.58730792,94257.0,94256.0,0.00052667]
[1734989338294,0.59030792,94257.0,94256.0,0.00052667]
[1734989338494,0.003,94257.0,94256.0,0.00052667]
[1734989338703,0.10898632,94257.0,94256.0,0.00052667]
[1734989339116,0.25898632,94257.0,94256.0,0.00052667]
[1734989339319,0.25898632,94257.0,94256.0,0.00061217]
[1734989339608,0.33788632,94257.0,94256.0,0.00061217]
[1734989339822,0.15,94256.0,94237.0,0.04210417]
[1734989339984,0.34388632,94257.0,94237.0,0.04210417]
[1734989339985,0.212228,94238.0,94237.0,0.04226202]
[1734989340155,0.212228,94238.0,94237.0,0.04176202]
[1734989340427,0.2546732,94238.0,94237.0,0.04176202]
[1734989341601,0.15,94251.0,94237.0,0.04676202]
[1734989341947,0.212167,94265.0,94238.0,0.0456]
[1734989342149,0.15,94256.0,94243.0,0.212217]
[1734989342273,0.212182,94259.0,94238.0,0.0456]
[1734989342473,0.212182,94259.0,94247.0,0.212207]
[1734989342698,0.001,94251.0,94247.0,0.212207]
[1734989343134,0.001,94251.0,94239.0,0.03833794]
[1734989343323,0.001,94251.0,94244.0,0.212213]
[1734989343679,0.212191,94255.0,94244.0,0.212213]
[1734989343881,0.0428373,94254.0,94244.0,0.212213]
[1734989344082,0.212197,94252.0,94238.0,0.0456]
[1734989344285,0.0428373,94254.0,94239.0,0.001]
[1734989344513,0.212205,94249.0,94239.0,0.001]
[1734989345523,0.212197,94252.0,94239.0,0.213224]
[1734989345738,0.10398632,94248.0,94239.0,0.001]
[1734989345934,0.21222,94242.0,94239.0,0.001]
[1734989346141,0.21222,94242.0,94237.0,0.04176202]
[1734989346373,0.212218,94243.0,94237.0,0.04176202]
[1734989346580,0.212224,94240.0,94237.0,0.04176202]
[1734989347016,0.212224,94240.0,94239.0,0.002]